fUST/lending_fUST_20251026
["ID","MTS","AMOUNT","RATE_DAILY","PERIOD"]
[392411280,1761444866635,-500.0,0.00014495,2]
[392411281,1761444866664,-500.0,0.00014495,2]
[392411282,1761444866691,-500.0,0.00014495,2]
[392411283,1761444866718,-500.0,0.00014495,2]
[392411284,1761444866745,-183.22403128,0.00014495,2]
[392411285,1761444866838,-316.77596872,0.00014495,2]
[392411286,1761444866865,-500.0,0.00014495,2]
[392411287,1761444866891,-500.0,0.00014495,2]
[392411288,1761444866917,-500.0,0.00014495,2]
[392411289,1761444866944,-500.0,0.00014495,2]
[392411290,1761444866971,-500.0,0.00014495,2]
[392411291,1761444866998,-500.0,0.00014495,2]
[392411292,1761444867026,-500.0,0.00014495,2]
[392411293,1761444867054,-500.0,0.00014495,2]
[392411294,1761444867080,-500.0,0.00014495,2]
[392411295,1761444867126,-548.86314013,0.00014495,2]
[392411296,1761444867155,-500.0,0.00014495,2]
[392411297,1761444867184,-500.0,0.00014495,2]
[392411298,1761444867211,-500.0,0.00014495,2]
[392411299,1761444867240,-500.0,0.00014495,2]
[392411300,1761444867268,-500.0,0.00014495,2]
[392411301,1761444867296,-500.0,0.00014495,2]
[392411302,1761444867324,-500.0,0.00014495,2]
[392411303,1761444867351,-500.0,0.00014495,2]
[392411304,1761444867379,-402.28371974,0.00014495,2]
[392411305,1761444867599,-97.71628026,0.00014495,2]
[392411306,1761444867632,-500.0,0.00014495,2]
[392411307,1761444867661,-500.0,0.00014495,2]
[392411308,1761444867690,-500.0,0.00014495,2]
[392411309,1761444867718,-500.0,0.00014495,2]
[392411310,1761444867745,-500.0,0.00014495,2]
[392411311,1761444867775,-500.0,0.00014495,2]
[392411312,1761444867802,-500.0,0.00014495,2]
[392411313,1761444867831,-500.0,0.00014495,2]
[392411314,1761444867861,-545.92825748,0.00014495,2]
[392411315,1761444867891,-212.72092452,0.00014495,2]
[392411316,1761444867954,-287.27907548,0.00014495,2]
[392411317,1761444867980,-500.0,0.00014495,2]
[392411318,1761444868008,-500.0,0.00014495,2]
[392411319,1761444868035,-500.0,0.00014495,2]
[392411320,1761444868062,-500.0,0.00014495,2]
[392411321,1761444880509,-4309.51511,0.00014495,2]
[392411322,1761444880533,-1380.97978,0.00014495,2]
[392411323,1761444889265,217.73054807,0.00014348,2]
[392411324,1761444891406,248.83491208,0.00014348,2]
[392411325,1761444893304,388.41574557,0.00014348,2]
[392411326,1761444898716,-9145.02879428,0.00014495,2]
[392411327,1761444898988,-10000.01,0.00014495,2]
[392411328,1761444899114,-10000.01,0.00014495,2]
[392411329,1761444899240,-10000.01,0.00014495,2]
[392411330,1761444899404,-10000.01,0.00014495,2]
[392411331,1761444899517,-854.93120572,0.00014495,2]
[392411332,1761444904926,-571.39438406,0.00014496,2]
[392411333,1761444923104,-500.0,0.00014498,2]
[392411334,1761444930846,-242.52111619,0.00014499,2]
[392411335,1761444931691,500.0,0.00014494,2]
[392411336,1761444931757,275.53923729,0.00014494,2]
[392411337,1761444932098,500.0,0.00014494,2]
[392411338,1761444932745,486.27543086,0.00014494,2]
[392411339,1761444933563,500.0,0.00014494,2]
[392411340,1761444933919,500.0,0.00014494,2]
[392411341,1761444934287,500.0,0.00014494,2]
[392411342,1761444941454,-326.47888381,0.00014499,2]
[392411343,1761444941481,-151.79838561,0.00014499,2]
[392411344,1761444941509,-500.0,0.00014499,2]
[392411345,1761444941538,-300.0,0.00014499,2]
[392411346,1761444941564,-300.0,0.00014499,2]
[392411347,1761444941592,-300.0,0.00014499,2]
[392411348,1761444941620,-300.0,0.00014499,2]
[392411349,1761444941650,-1200.0,0.00014499,2]
[392411350,1761444960952,406.71692769,0.00014494,2]
[392411351,1761444962588,-300.0,0.000145,2]
[392411352,1761444962616,-300.0,0.000145,2]
[392411353,1761444962644,-300.0,0.000145,2]
[392411354,1761444962677,-300.0,0.000145,2]
[392411355,1761444962706,-300.0,0.000145,2]
[392411356,1761445010916,500.0,0.00014496,2]
[392411357,1761445011170,500.0,0.00014497,2]
[392411358,1761445011404,276.1785245,0.00014497,2]
[392411359,1761445045782,161.47972434,0.00014337,2]
[392411360,1761445047686,290.37284031,0.00014337,2]
[392411361,1761445053869,-168.0,0.0001459,2]
[392411374,1761445072160,-168.0,0.00014703,2]
[392411380,1761445090282,-1200.0,0.00014717,2]
[392411381,1761445090310,-300.0,0.00014717,2]
[392411383,1761445113606,437.59386193,0.00014717,2]
[392411384,1761445113642,222.33552554,0.00014717,2]
[392411385,1761445128870,500.0,0.00014717,2]
[392411386,1761445128926,500.0,0.00014717,2]
[392411387,1761445128974,500.0,0.00014717,2]
[392411388,1761445129039,500.0,0.00014717,2]
[392411389,1761445129089,571.19703793,0.00014717,2]
[392411390,1761445135624,500.0,0.00014494,2]
[392411391,1761445135867,500.0,0.00014494,2]
[392411392,1761445136110,500.0,0.00014553,2]
[392411393,1761445142864,300.0,0.00014717,2]
[392411394,1761445178859,-539.78345505,0.00014737,2]
[392411395,1761445194175,171.17556596,0.00014337,2]
[392411396,1761445195921,307.80790271,0.00014337,2]
[392411397,1761445197036,-2035.14234491,0.00014752,2]
[392411398,1761445215452,-2432.88898323,0.00014837,2]
[392411399,1761445215861,-4865.77796646,0.00014837,2]
[392411400,1761445215897,-268.45406708,0.00014837,2]
[392411401,1761445233571,-1200.0,0.00014887,2]
[392411402,1761445249671,500.0,0.00014496,2]
[392411403,1761445249699,999.0,0.00013926,2]
[392411404,1761445249926,500.0,0.00014497,2]
[392411405,1761445250190,292.48623065,0.00014497,2]
[392411406,1761445251920,-233.0,0.00014888,2]
[392411407,1761445251947,-300.0,0.00014888,2]
[392411408,1761445271115,-500.0,0.00014889,2]
[392411409,1761445271143,-500.0,0.00014889,2]
[392411410,1761445271169,-331.29197957,0.00014889,2]
[392411411,1761445271199,-300.0,0.00014889,2]
[392411412,1761445289468,-306.31570336,0.00014889,2]
[392411413,1761445289494,-155.63486788,0.00014889,2]
[392411414,1761445289522,-285.68855977,0.00014889,2]
[392411415,1761445308170,-2246.55357345,0.0001489,2]
[392411416,1761445308192,-10000.01,0.0001489,2]
[392411417,1761445308233,-10000.01,0.0001489,2]
[392411418,1761445308279,-10000.01,0.0001489,2]
[392411419,1761445308302,-10000.01,0.0001489,2]
[392411420,1761445308320,-10000.01,0.0001489,2]
[392411421,1761445308382,-10000.01,0.0001489,2]
[392411422,1761445308508,-10000.01,0.0001489,2]
[392411423,1761445308697,-10000.01,0.0001489,2]
[392411424,1761445308811,-10000.01,0.0001489,2]
[392411425,1761445319797,-10000.01,0.0001489,2]
[392411426,1761445320017,-10000.01,0.0001489,2]
[392411427,1761445320151,-10000.01,0.0001489,2]
[392411428,1761445320277,-10000.01,0.0001489,2]
[392411429,1761445320408,-10000.01,0.0001489,2]
[392411430,1761445320522,-10000.01,0.0001489,2]
[392411431,1761445320647,-10000.01,0.0001489,2]
[392411432,1761445320772,-10000.01,0.0001489,2]
[392411433,1761445320877,-10000.01,0.0001489,2]
[392411434,1761445320978,-10000.01,0.0001489,2]
[392411435,1761445349494,-234.8013381,0.0001425,2]
[392411436,1761445352470,-187.96200002,0.0001425,2]
[392411437,1761445354967,-16.89774523,0.0001425,2]
[392411438,1761445354988,-138.20696745,0.0001425,2]
[392411439,1761445358055,-315.48774858,0.0001425,2]
[392411440,1761445358899,3279.06535468,0.00014108,2]
[392411441,1761445360257,-169.46769597,0.0001425,2]
[392411442,1761445360393,1200.0,0.00014249,2]
[392411443,1761445362657,-168.22753803,0.0001425,2]
[392411444,1761445362678,-131.77246197,0.0001425,2]
[392411445,1761445364225,-272.52659359,0.0001425,2]
[392411446,1761445367170,-179.90717506,0.0001425,2]
[392411447,1761445381271,1838.15917084,0.00014108,2]
[392411448,1761445382580,300.0,0.00014249,2]
[392411449,1761445442410,300.0,0.00014249,2]
[392411450,1761445480925,252.38,0.00012329,2]
[392411451,1761445485650,-155.14049997,0.0001425,2]
[392411452,1761445489885,-196.0,0.0001425,2]
[392411453,1761445498132,211.1277812,0.00013949,2]
[392411454,1761445502213,300.0,0.00014249,2]
[392411455,1761445505264,1200.0,0.00014249,2]
[392411457,1761445529404,-246.35360365,0.0001425,2]
[392411458,1761445562228,300.0,0.00014249,2]
[392411459,1761445622664,300.0,0.00014249,2]
[392411460,1761445647160,225.21513247,0.00013538,2]
[392411461,1761445648860,294.06256081,0.00013538,2]
[392411462,1761445648880,1904.24285593,0.00013538,2]
[392411463,1761445650700,3162.39424031,0.00013538,2]
[392411464,1761445659879,1200.0,0.00014249,2]
[392411465,1761445664606,1000.0,0.0003,120]
[392411467,1761445682220,300.0,0.00014249,2]
[392411472,1761445721371,208.25242563,0.0003,120]
[392411473,1761445741848,3433.37290376,0.00013498,2]
[392411474,1761445741871,10000.01,0.00013498,2]
[392411475,1761445741893,10000.01,0.00013498,2]
[392411476,1761445741923,10000.01,0.00013498,2]
[392411477,1761445741948,10000.01,0.00013498,2]
[392411478,1761445741970,10000.01,0.00013498,2]
[392411479,1761445741992,4884.04475744,0.00013498,2]
[392411480,1761445742579,300.0,0.00014249,2]
[392411481,1761445750636,2203.45128676,0.0001912,9]
[392411482,1761445759106,196.54871324,0.0001912,9]
[392411483,1761445767253,362.98477801,0.0001912,9]
[392411484,1761445775652,5000.0,0.0001912,9]
[392411485,1761445799039,2565.25519653,0.00014108,2]
[392411486,1761445800225,233.31106835,0.00013538,2]
[392411487,1761445802129,419.95992303,0.00013538,2]
[392411488,1761445804113,746.59541873,0.00013538,2]
[392411489,1761445806239,1165.38878642,0.00013538,2]
[392411490,1761445808022,169.2487865,0.00014233,2]
[392411491,1761445810166,304.34316788,0.00014233,2]
[392411492,1761445816365,213.96859442,0.0001425,2]
[392411493,1761445816696,151.0,0.0001425,2]
[392411494,1761445817070,151.0,0.0001425,2]
[392411495,1761445818258,151.0,0.0001425,2]
[392411496,1761445818895,151.0,0.0001425,2]
[392411545,1761445836554,-257.98029544,0.00014108,2]
[392411547,1761445836563,-257.98029544,0.0001425,2]
[392411549,1761445836573,-586.21540915,0.00014398,2]
[392411551,1761445836582,-500.9769299,0.00014494,2]
[392411553,1761445836591,-194.80891028,0.00014496,2]
[392411555,1761445836603,-305.19108972,0.00014496,2]
[392411557,1761445836611,-500.0,0.00014496,2]
[392411559,1761445836620,-500.0,0.00014496,2]
[392411561,1761445836629,-417.3083566,0.00014496,2]
[392411563,1761445836639,-500.0,0.00014496,2]
[392411565,1761445836649,-500.0,0.00014496,2]
[392411567,1761445836658,-500.0,0.00014496,2]
[392411569,1761445836667,-500.0,0.00014496,2]
[392411571,1761445836676,-500.0,0.00014496,2]
[392411573,1761445836685,-500.0,0.00014496,2]
[392411575,1761445836694,-500.0,0.00014496,2]
[392411577,1761445836703,-500.0,0.00014496,2]
[392411579,1761445836712,-500.0,0.00014496,2]
[392411581,1761445836721,-272.16481839,0.00014496,2]
[392411583,1761445836731,-500.0,0.00014496,2]
[392411585,1761445836739,-500.0,0.00014496,2]
[392411587,1761445836749,-500.0,0.00014496,2]
[392411589,1761445836757,-500.0,0.00014496,2]
[392411591,1761445836766,-500.0,0.00014496,2]
[392411593,1761445836775,-500.0,0.00014496,2]
[392411595,1761445836784,-500.0,0.00014496,2]
[392411597,1761445836793,-500.0,0.00014496,2]
[392411599,1761445836803,-181.34553686,0.00014496,2]
[392411601,1761445836812,-500.0,0.00014496,2]
[392411603,1761445836821,-428.11403994,0.00014496,2]
[392411606,1761445836830,-500.0,0.00014496,2]
[392411608,1761445836839,-500.0,0.00014496,2]
[392411610,1761445836851,-500.0,0.00014496,2]
[392411612,1761445836861,-500.0,0.00014496,2]
[392411614,1761445836871,-500.0,0.00014496,2]
[392411616,1761445836880,-500.0,0.00014496,2]
[392411618,1761445836891,-500.0,0.00014496,2]
[392411620,1761445836903,-500.0,0.00014496,2]
[392411621,1761445836912,-298.20790172,0.00014496,2]
[392411623,1761445836921,-500.0,0.00014496,2]
[392411625,1761445836930,-500.0,0.00014496,2]
[392411627,1761445836939,-500.0,0.00014496,2]
[392411629,1761445836948,-500.0,0.00014496,2]
[392411631,1761445836957,-500.0,0.00014496,2]
[392411633,1761445836967,-394.04416335,0.00014496,2]
[392411636,1761445836986,-105.95583665,0.00014496,2]
[392411638,1761445836995,-395.73126416,0.00014496,2]
[392411640,1761445837008,-104.26873584,0.00014496,2]
[392411642,1761445837017,-500.0,0.00014496,2]
[392411644,1761445837028,-500.0,0.00014496,2]
[392411647,1761445837041,-500.0,0.00014496,2]
[392411649,1761445837051,-500.0,0.00014496,2]
[392411650,1761445837060,-500.0,0.00014496,2]
[392411652,1761445837071,-435.85408411,0.00014496,2]
[392411697,1761445838498,-64.14591589,0.00014496,2]
[392411698,1761445838509,-500.0,0.00014496,2]
[392411699,1761445838518,-500.0,0.00014496,2]
[392411700,1761445838528,-500.0,0.00014496,2]
[392411701,1761445838538,-245.27133631,0.00014496,2]
[392411702,1761445838548,-500.0,0.00014496,2]
[392411703,1761445838557,-500.0,0.00014496,2]
[392411704,1761445838567,-215.78686455,0.00014496,2]
[392411705,1761445838579,-261.79905493,0.00014496,2]
[392411706,1761445838595,-22.41408052,0.00014496,2]
[392411707,1761445838605,-500.0,0.00014496,2]
[392411708,1761445838614,-500.0,0.00014496,2]
[392411709,1761445838624,-500.0,0.00014496,2]
[392411710,1761445838633,-284.97094501,0.00014496,2]
[392411711,1761445838642,-300.0,0.00014496,2]
[392411712,1761445838652,-1200.0,0.00014496,2]
[392411713,1761445838663,-242.49542036,0.00014496,2]
[392411714,1761445838672,-1505.75516021,0.00014497,2]
[392411732,1761445840895,-3e-08,0.00014497,2]
[392411743,1761445846754,-424.31610402,0.00014352,2]
[392411744,1761445846763,-563.64461114,0.00014497,2]
[392411745,1761445846775,-671.70639354,0.00014497,2]
[392411746,1761445846786,-355.16346397,0.00014497,2]
[392411747,1761445846803,-17313.53192458,0.00014497,2]
[392411748,1761445846858,-375.17554762,0.00014497,2]
[392411749,1761445846869,-342.55454446,0.00014497,2]
[392411750,1761445846880,-374.92114556,0.00014497,2]
[392411751,1761445853695,1017.25,0.00019,6]
[392411752,1761445883700,576.9253993,0.00013657,2]
[392411753,1761445949702,218.67346238,0.00014224,2]
[392411754,1761445951853,249.91252843,0.00014224,2]
[392411755,1761445953505,390.09783735,0.00014224,2]
[392411756,1761445957248,1000.0,0.00019,6]
[392411757,1761446102725,219.97211617,0.00014224,2]
[392411758,1761446104976,395.9498091,0.00014224,2]
[392411759,1761446106870,703.91077173,0.00014224,2]
[392411760,1761446109100,1098.76072025,0.00014224,2]
[392411761,1761446129903,233.23258604,0.00014207,2]
[392411762,1761446172905,8505.532478,0.00013699,2]
[392411763,1761446222589,300.0,0.00014492,2]
[392411764,1761446253344,755.2758074,0.00014395,2]
[392411765,1761446255466,466.67209559,0.00014155,2]
[392411766,1761446257660,840.00977207,0.00014155,2]
[392411767,1761446259719,1200.0,0.00014492,2]
[392411768,1761446260123,1493.35070589,0.00014155,2]
[392411769,1761446262671,2333.36047796,0.00014155,2]
[392411770,1761446264624,2611.34114109,0.00014155,2]
[392411771,1761446264856,745.33790808,0.00014155,2]
[392411773,1761446282234,300.0,0.00014492,2]
[392411774,1761446287483,1500.0,0.00030136,120]
[392411775,1761446318064,800.0,0.00014425,2]
[392411776,1761446342482,300.0,0.00014492,2]
[392411777,1761446343705,7854.67209192,0.00014493,2]
[392411778,1761446343976,10000.01,0.00014493,2]
[392411779,1761446344000,10000.01,0.00014493,2]
[392411780,1761446344024,10000.01,0.00014493,2]
[392411781,1761446344048,10000.01,0.00014493,2]
[392411782,1761446344070,2145.28790808,0.00014493,2]
[392411783,1761446360626,1000.0,0.00030136,120]
[392411784,1761446399511,-199.47966151,0.00014493,2]
[392411785,1761446399536,-11.83791278,0.00014493,2]
[392411786,1761446403437,300.0,0.00014492,2]
[392411787,1761446405092,211.31757432,0.0001912,9]
[392411788,1761446405957,1200.0,0.00014492,2]
[392411789,1761446407011,428.33079954,0.00014155,2]
[392411790,1761446407840,1500.0,0.00030136,120]
[392411791,1761446409379,770.99543918,0.00014155,2]
[392411792,1761446411091,1370.65855854,0.00014155,2]
[392411793,1761446413277,2141.65399771,0.00014155,2]
[392411794,1761446415029,-216.4019123,0.00014493,2]
[392411795,1761446415778,1643.08329695,0.00014155,2]
[392411796,1761446415800,1437.814478,0.00014155,2]
[392411797,1761446420735,216.4019123,0.0001912,9]
[392411798,1761446436803,833.0,0.00030136,120]
[392411799,1761446451749,-500.0,0.00014494,2]
[392411800,1761446451778,-492.0126711,0.00014494,2]
[392411801,1761446451805,-180.7985679,0.00014494,2]
[392411802,1761446451833,-310.91198908,0.00014494,2]
[392411803,1761446451861,-500.0,0.00014494,2]
[392411804,1761446451890,-324.52713363,0.00014494,2]
[392411805,1761446451918,-500.0,0.00014494,2]
[392411806,1761446451946,-500.0,0.00014494,2]
[392411807,1761446451974,-500.0,0.00014494,2]
[392411808,1761446459402,-243.23387263,0.00014495,2]
[392411809,1761446462262,300.0,0.00014494,2]
[392411810,1761446465290,243.23387263,0.0001912,9]
[392411811,1761446469930,-1251.69325057,0.00014495,2]
[392411812,1761446476877,-1559.74561281,0.00014495,2]
[392411813,1761446476927,-10000.01,0.00014495,2]
[392411814,1761446477047,-10000.01,0.00014495,2]
[392411815,1761446477178,-10000.01,0.00014495,2]
[392411816,1761446482216,-10000.01,0.00014495,2]
[392411817,1761446482437,-10000.01,0.00014495,2]
[392411818,1761446482607,-1022.49659619,0.00014495,2]
[392411819,1761446482636,-582.5892951,0.00014495,2]
[392411820,1761446482665,-2289.0,0.00014644,2]
[392411821,1761446482692,-500.0,0.00014673,2]
[392411822,1761446482718,-500.0,0.00014673,2]
[392411823,1761446482820,-500.0,0.00014673,2]
[392411824,1761446482847,-500.0,0.00014673,2]
[392411825,1761446482874,-505.04081433,0.00014673,2]
[392411826,1761446482900,-500.0,0.00014673,2]
[392411827,1761446482927,-500.0,0.00014673,2]
[392411828,1761446482954,-500.0,0.00014673,2]
[392411829,1761446482981,-500.0,0.00014673,2]
[392411830,1761446483008,-500.0,0.00014673,2]
[392411831,1761446483036,-500.0,0.00014673,2]
[392411832,1761446483065,-489.92837134,0.00014673,2]
[392411833,1761446483155,-10.07162866,0.00014673,2]
[392411834,1761446483182,-500.0,0.00014673,2]
[392411835,1761446483210,-500.0,0.00014673,2]
[392411836,1761446483238,-500.0,0.00014673,2]
[392411837,1761446483264,-500.0,0.00014673,2]
[392411838,1761446483292,-502.791698,0.00014673,2]
[392411839,1761446483322,-500.0,0.00014673,2]
[392411840,1761446483348,-506.65021692,0.00014673,2]
[392411841,1761446483375,-925.84056793,0.00014676,2]
[392411842,1761446483503,-1109.30177698,0.00014676,2]
[392411843,1761446483895,-246.46420399,0.00014673,2]
[392411844,1761446483926,-253.53579601,0.00014673,2]
[392411845,1761446483935,-855.76598097,0.000147,2]
[392411846,1761446483949,-7781.40644604,0.000147,2]
[392411847,1761446488217,-500.0,0.00014673,2]
[392411848,1761446488249,-500.0,0.00014673,2]
[392411849,1761446488274,-500.0,0.00014673,2]
[392411850,1761446488301,-500.0,0.00014673,2]
[392411851,1761446488327,-500.0,0.00014673,2]
[392411852,1761446488354,-500.0,0.00014673,2]
[392411853,1761446488380,-500.0,0.00014673,2]
[392411854,1761446488658,-3000.01,0.000147,2]
[392411855,1761446488774,-10000.01,0.000147,2]
[392411856,1761446488900,-10000.01,0.000147,2]
[392411857,1761446489034,-10000.01,0.000147,2]
[392411858,1761446489136,-10000.01,0.000147,2]
[392411859,1761446489272,-10000.01,0.000147,2]
[392411860,1761446494480,-10000.01,0.000147,2]
[392411861,1761446494700,-10000.01,0.000147,2]
[392411862,1761446494806,-10000.01,0.000147,2]
[392411863,1761446494907,-10000.01,0.000147,2]
[392411864,1761446500595,-500.0,0.00014673,2]
[392411865,1761446500644,-9000.01,0.000147,2]
[392411866,1761446500682,-10000.01,0.000147,2]
[392411867,1761446500821,-10000.01,0.000147,2]
[392411868,1761446500965,-10000.01,0.000147,2]
[392411869,1761446501068,-10000.01,0.000147,2]
[392411870,1761446506478,-10000.01,0.000147,2]
[392411871,1761446506627,-10000.01,0.000147,2]
[392411872,1761446506741,-10000.01,0.000147,2]
[392411873,1761446506893,-10000.01,0.000147,2]
[392411874,1761446507013,-10000.01,0.000147,2]
[392411875,1761446512586,-10000.01,0.000147,2]
[392411876,1761446512732,-10000.01,0.000147,2]
[392411877,1761446512855,-10000.01,0.000147,2]
[392411878,1761446512955,-10000.01,0.000147,2]
[392411879,1761446513061,-10000.01,0.000147,2]
[392411880,1761446518604,-10000.01,0.000147,2]
[392411881,1761446518725,-10000.01,0.000147,2]
[392411882,1761446518852,-10000.01,0.000147,2]
[392411883,1761446519009,-10000.01,0.000147,2]
[392411884,1761446519122,-10000.01,0.000147,2]
[392411885,1761446527927,-300.0,0.00014699,2]
[392411886,1761446534161,486.62206218,0.00014494,2]
[392411887,1761446534194,500.0,0.00014494,2]
[392411888,1761446534229,505.77113646,0.00014494,2]
[392411889,1761446534502,500.0,0.00014494,2]
[392411890,1761446534534,500.0,0.00014494,2]
[392411891,1761446534568,500.0,0.00014494,2]
[392411892,1761446534612,500.0,0.00014494,2]
[392411893,1761446534643,492.98778533,0.00014494,2]
[392411894,1761446534674,301.42339994,0.00014494,2]
[392411895,1761446534704,297.65565694,0.00014494,2]
[392411896,1761446534742,500.0,0.00014494,2]
[392411897,1761446534784,500.0,0.00014494,2]
[392411898,1761446534825,500.0,0.00014494,2]
[392411899,1761446538621,660.86633144,0.000146,2]
[392411900,1761446543021,-3254.68362771,0.000147,2]
[392411901,1761446543069,-10000.01,0.000147,2]
[392411902,1761446543527,-10000.01,0.000147,2]
[392411903,1761446543628,-10000.01,0.000147,2]
[392411904,1761446543725,-10000.01,0.000147,2]
[392411905,1761446543847,-10000.01,0.000147,2]
[392411906,1761446544029,-10000.01,0.000147,2]
[392411907,1761446544169,-3892.22605472,0.000147,2]
[392411908,1761446544192,-2215.55789056,0.000147,2]
[392411909,1761446544272,-10000.01,0.000147,2]
[392411910,1761446552223,-500.0,0.00014673,2]
[392411911,1761446552250,-500.0,0.00014673,2]
[392411912,1761446552275,-500.0,0.00014673,2]
[392411913,1761446552301,-500.0,0.00014673,2]
[392411914,1761446552327,-803.71890508,0.000147,2]
[392411915,1761446557079,285.53872503,0.00014155,2]
[392411916,1761446558171,-500.0,0.00014799,2]
[392411917,1761446558201,-180.24253229,0.00014799,2]
[392411918,1761446559029,513.96970505,0.00014155,2]
[392411919,1761446559916,1200.0,0.00014799,2]
[392411920,1761446560850,913.72392009,0.00014155,2]
[392411921,1761446562809,1427.69362514,0.00014155,2]
[392411922,1761446564430,2053.82294138,0.00014155,2]
[392411923,1761446576435,-190.3693258,0.000148,2]
[392411924,1761446576469,-802.9187237,0.000148,2]
[392411925,1761446576500,-173.4725513,0.000148,2]
[392411926,1761446576531,-305.9910012,0.000148,2]
[392411927,1761446576563,-405.0479205,0.000148,2]
[392411928,1761446576596,-315.131333,0.000148,2]
[392411929,1761446576633,-605.097907,0.000148,2]
[392411930,1761446576666,-163.4508527,0.000148,2]
[392411931,1761446576700,-590.4913694,0.000148,2]
[392411932,1761446576732,-190.3693258,0.000148,2]
[392411933,1761446576763,-153.0,0.000148,2]
[392411934,1761446576794,-298.9339524,0.000148,2]
[392411935,1761446577619,-5216.72255771,0.000148,2]
[392411936,1761446577666,-10000.01,0.000148,2]
[392411937,1761446577707,-3211.28871541,0.000148,2]
[392411938,1761446582507,-175.61289279,0.00014823,2]
[392411939,1761446591228,1000.0,0.00014698,2]
[392411940,1761446591504,1000.0,0.00014698,2]
[392411941,1761446591788,1000.0,0.00014698,2]
[392411942,1761446592019,1000.0,0.00014698,2]
[392411943,1761446592266,1000.0,0.00014698,2]
[392411944,1761446603606,-2289.0,0.00014869,2]
[392411945,1761446622017,-300.0,0.00014875,2]
[392411946,1761446626057,168.0,0.00014834,2]
[392411947,1761446636849,168.0,0.0001448,2]
[392411948,1761446637110,-4664.01,0.00014876,2]
[392411949,1761446637180,-3860.29109493,0.00014876,2]
[392411950,1761446637202,-2279.42781014,0.00014876,2]
[392411951,1761446642975,190.0,0.00014615,2]
[392411952,1761446648801,190.0,0.00014724,2]
[392411953,1761446653584,190.0,0.00014722,2]
[392411954,1761446655206,-213.96859442,0.00014881,2]
[392411955,1761446658556,190.0,0.00014602,2]
[392411956,1761446664382,190.0,0.00014586,2]
[392411957,1761446669295,190.0,0.00014622,2]
[392411958,1761446670510,-233.95289003,0.00014888,2]
[392411959,1761446670543,-163.76702302,0.00014888,2]
[392411960,1761446670573,-300.0,0.00014888,2]
[392411961,1761446685701,-1000.0,0.00014889,2]
[392411962,1761446685729,-1000.0,0.00014889,2]
[392411963,1761446685757,-1000.0,0.00014889,2]
[392411964,1761446685786,-1000.0,0.00014889,2]
[392411965,1761446685814,-1000.0,0.00014889,2]
[392411966,1761446685960,-1000.0,0.00014889,2]
[392411967,1761446686175,-1000.0,0.00014889,2]
[392411968,1761446686206,-1000.0,0.00014889,2]
[392411969,1761446686234,-1000.0,0.00014889,2]
[392411970,1761446692058,386.0,0.00014867,2]
[392411971,1761446700868,-401.36407093,0.00014899,2]
[392411972,1761446700896,-458.70179535,0.00014899,2]
[392411973,1761446700924,-716.00483369,0.00014899,2]
[392411974,1761446700950,-285.02377365,0.00014899,2]
[392411975,1761446700979,-325.41571415,0.00014899,2]
[392411976,1761446702454,300.0,0.00014899,2]
[392411977,1761446705385,1200.0,0.00014899,2]